[Event "*** Titled Tuesday Blitz"]
[Site "Chess.com"]
[Date "2020.11.10"]
[Round "8"]
[White "Parhamov"]
[Black "dropstoneDP"]
[Result "0-1"]
[WhiteElo "2957"]
[BlackElo "2949"]
[TimeControl "180+1"]
[EndTime "11:33:38 PST"]
[Termination "dropstoneDP won on time"]

1. d3 {[%clk 0:03:00.9]} 1... e5 {[%clk 0:02:57.9]} 2. Nf3 {[%clk 0:03:00.2]}
2... Nc6 {[%clk 0:02:58.3]} 3. c4 {[%clk 0:02:59.2]} 3... Nge7 {[%clk
0:02:57.7]} 4. g3 {[%clk 0:02:54.5]} 4... d5 {[%clk 0:02:56.2]} 5. cxd5 {[%clk
0:02:54.3]} 5... Nxd5 {[%clk 0:02:57.1]} 6. Bg2 {[%clk 0:02:52]} 6... f6 {[%clk
0:02:51.7]} 7. a3 {[%clk 0:02:44.4]} 7... Be6 {[%clk 0:02:51.7]} 8. b4 {[%clk
0:02:31.7]} 8... Qd7 {[%clk 0:02:51]} 9. Bb2 {[%clk 0:02:31.1]} 9... a5 {[%clk
0:02:47.1]} 10. b5 {[%clk 0:02:29]} 10... Na7 {[%clk 0:02:47.6]} 11. a4 {[%clk
0:02:29.3]} 11... c6 {[%clk 0:02:47.2]} 12. bxc6 {[%clk 0:02:28.7]} 12... Bb4+
{[%clk 0:02:42.8]} 13. Nbd2 {[%clk 0:02:28.4]} 13... Nxc6 {[%clk 0:02:41.3]} 14.
Rc1 {[%clk 0:02:11.8]} 14... O-O {[%clk 0:02:39.2]} 15. O-O {[%clk 0:02:10.7]}
15... Rfc8 {[%clk 0:02:38.8]} 16. Nc4 {[%clk 0:02:09.5]} 16... Qd8 {[%clk
0:02:33.9]} 17. Nfd2 {[%clk 0:01:22.9]} 17... Rab8 {[%clk 0:02:34.2]} 18. e3
{[%clk 0:01:15.3]} 18... b5 {[%clk 0:02:25.3]} 19. axb5 {[%clk 0:01:14]} 19...
Rxb5 {[%clk 0:02:21.7]} 20. Ne4 {[%clk 0:00:56.7]} 20... Rbb8 {[%clk 0:02:11.9]}
21. Qa4 {[%clk 0:00:34.6]} 21... Qe7 {[%clk 0:02:08.4]} 22. Ba1 {[%clk
0:00:23.8]} 22... h5 {[%clk 0:02:04.3]} 23. h4 {[%clk 0:00:22.5]} 23... Kh8
{[%clk 0:01:58.9]} 24. Bf3 {[%clk 0:00:20.6]} 24... Bg4 {[%clk 0:01:56.8]} 25.
Bxg4 {[%clk 0:00:17.6]} 25... hxg4 {[%clk 0:01:57.7]} 26. Ncd6 {[%clk
0:00:13.7]} 26... Bxd6 {[%clk 0:01:55.9]} 27. Rxc6 {[%clk 0:00:13.6]} 27... Bb4
{[%clk 0:01:43.9]} 28. Rfc1 {[%clk 0:00:12.6]} 28... Qe8 {[%clk 0:01:29.7]} 29.
Rxc8 {[%clk 0:00:08.4]} 29... Rxc8 {[%clk 0:01:30.2]} 30. Rxc8 {[%clk
0:00:03.6]} 30... Qxc8 {[%clk 0:01:30.2]} 31. Qd1 {[%clk 0:00:04.2]} 31... Qd7
{[%clk 0:01:27.1]} 32. Kh2 {[%clk 0:00:04.4]} 32... a4 {[%clk 0:01:18.4]} 33.
Qc2 {[%clk 0:00:04.6]} 33... a3 {[%clk 0:01:16.7]} 34. Qc4 {[%clk 0:00:04.6]}
34... Bf8 {[%clk 0:01:15.5]} 35. d4 {[%clk 0:00:04.7]} 35... exd4 {[%clk
0:01:01.6]} 36. Bxd4 {[%clk 0:00:05.6]} 36... Qf5 {[%clk 0:00:58.1]} 37. Qd3
{[%clk 0:00:02.9]} 37... a2 {[%clk 0:00:57.7]} 38. Ba1 {[%clk 0:00:02.1]} 38...
Bb4 {[%clk 0:00:50]} 39. Qc4 {[%clk 0:00:01.9]} 39... Kh7 {[%clk 0:00:44.6]} 40.
Kg1 {[%clk 0:00:02.8]} 40... Kh6 {[%clk 0:00:44.3]} 41. Qd3 {[%clk 0:00:03.2]}
41... Bc3 {[%clk 0:00:40.3]} 42. Bxc3 {[%clk 0:00:02.5]} 42... Nxc3 {[%clk
0:00:40.9]} 43. Qxc3 {[%clk 0:00:02.8]} 43... Qxe4 {[%clk 0:00:41.1]} 44. Kh2
{[%clk 0:00:01.5]} 44... Qb1 {[%clk 0:00:37.7]} 45. e4 {[%clk 0:00:01]} 45...
a1=Q {[%clk 0:00:37.5]} 0-1

[Event "*** Titled Tuesday Blitz"]
[Site "Chess.com"]
[Date "2020.11.10"]
[Round "8"]
[White "giantslayer83"]
[Black "alejanchess73"]
[Result "1-0"]
[WhiteElo "2700"]
[BlackElo "2473"]
[TimeControl "180+1"]
[EndTime "11:33:38 PST"]
[Termination "giantslayer83 won on time"]

1. d4 {[%clk 0:03:00.9]} 1... Nf6 {[%clk 0:02:57.6]} 2. Bg5 {[%clk 0:03:00.6]}
2... d5 {[%clk 0:02:55.2]} 3. e3 {[%clk 0:03:00.3]} 3... Nbd7 {[%clk 0:02:54.5]}
4. Nf3 {[%clk 0:02:59.1]} 4... g6 {[%clk 0:02:54.6]} 5. c4 {[%clk 0:02:58.7]}
5... c6 {[%clk 0:02:52.8]} 6. Nc3 {[%clk 0:02:59.1]} 6... Bg7 {[%clk 0:02:52.4]}
7. h3 {[%clk 0:02:59.3]} 7... O-O {[%clk 0:02:52]} 8. Bd3 {[%clk 0:02:59.1]}
8... dxc4 {[%clk 0:02:50.9]} 9. Bxc4 {[%clk 0:02:59.1]} 9... Nb6 {[%clk
0:02:51.5]} 10. Bb3 {[%clk 0:02:59.1]} 10... Bf5 {[%clk 0:02:45.1]} 11. O-O
{[%clk 0:02:58.4]} 11... Ne4 {[%clk 0:02:43.1]} 12. Nxe4 {[%clk 0:02:55.7]}
12... Bxe4 {[%clk 0:02:44]} 13. Nd2 {[%clk 0:02:43.7]} 13... Bd5 {[%clk
0:02:41.3]} 14. e4 {[%clk 0:02:44.2]} 14... Bxb3 {[%clk 0:02:40.8]} 15. Nxb3
{[%clk 0:02:45.1]} 15... a5 {[%clk 0:02:28.3]} 16. a4 {[%clk 0:02:41.4]} 16...
Re8 {[%clk 0:02:19]} 17. Qc2 {[%clk 0:02:29.4]} 17... Qd6 {[%clk 0:01:54.8]} 18.
Rfd1 {[%clk 0:02:26.2]} 18... h6 {[%clk 0:01:49.2]} 19. Bd2 {[%clk 0:01:57.6]}
19... Bxd4 {[%clk 0:01:17.1]} 20. Bxa5 {[%clk 0:01:36.1]} 20... c5 {[%clk
0:01:10.7]} 21. Bxb6 {[%clk 0:01:24.3]} 21... Qxb6 {[%clk 0:01:09.8]} 22. a5
{[%clk 0:01:24.4]} 22... Qb4 {[%clk 0:00:45.7]} 23. Nxd4 {[%clk 0:01:23.3]}
23... cxd4 {[%clk 0:00:45.4]} 24. Ra4 {[%clk 0:01:23.8]} 24... Qb5 {[%clk
0:00:37.2]} 25. Raxd4 {[%clk 0:01:16.9]} 25... Qxa5 {[%clk 0:00:35.5]} 26. Rd7
{[%clk 0:01:16.5]} 26... Rac8 {[%clk 0:00:27.3]} 27. Qb3 {[%clk 0:01:15.2]}
27... b5 {[%clk 0:00:19.7]} 28. Qe3 {[%clk 0:00:57.6]} 28... Kg7 {[%clk
0:00:15.1]} 29. Qd4+ {[%clk 0:00:54.9]} 29... Kg8 {[%clk 0:00:15.4]} 30. Ra7
{[%clk 0:00:50.8]} 30... Qd8 {[%clk 0:00:13.2]} 31. Rd7 {[%clk 0:00:29.9]} 31...
Qa5 {[%clk 0:00:12.1]} 32. Qe5 {[%clk 0:00:30.2]} 32... Qa4 {[%clk 0:00:10.5]}
33. R1d5 {[%clk 0:00:23.5]} 33... Qa1+ {[%clk 0:00:08.4]} 34. Kh2 {[%clk
0:00:23.4]} 34... Rc1 {[%clk 0:00:08.2]} 35. Rxe7 {[%clk 0:00:22.6]} 35... Rh1+
{[%clk 0:00:08.6]} 36. Kg3 {[%clk 0:00:22.3]} 36... Rf8 {[%clk 0:00:09.1]} 37.
Re8 {[%clk 0:00:21.4]} 37... Rxe8 {[%clk 0:00:03.8]} 38. Qxe8+ {[%clk
0:00:21.2]} 38... Kg7 {[%clk 0:00:03.8]} 39. Qe5+ {[%clk 0:00:21.5]} 39... Kh7
{[%clk 0:00:03.7]} 40. Rd8 {[%clk 0:00:21]} 1-0

[Event "*** Titled Tuesday Blitz"]
[Site "Chess.com"]
[Date "2020.11.10"]
[Round "8"]
[White "Margarita2907"]
[Black "grandcoach"]
[Result "0-1"]
[WhiteElo "2211"]
[BlackElo "2108"]
[TimeControl "180+1"]
[EndTime "11:33:38 PST"]
[Termination "grandcoach won by resignation"]

1. e4 {[%clk 0:03:00.9]} 1... c5 {[%clk 0:02:59.2]} 2. Nf3 {[%clk 0:03:00.6]}
2... Nc6 {[%clk 0:02:59.6]} 3. d4 {[%clk 0:03:00.7]} 3... cxd4 {[%clk
0:03:00.1]} 4. Nxd4 {[%clk 0:03:01.5]} 4... e5 {[%clk 0:03:00.4]} 5. Nb5 {[%clk
0:02:59.9]} 5... d6 {[%clk 0:03:00.4]} 6. N1c3 {[%clk 0:02:58.8]} 6... a6 {[%clk
0:03:00.2]} 7. Na3 {[%clk 0:02:56.7]} 7... b5 {[%clk 0:03:00.7]} 8. Nd5 {[%clk
0:02:53.1]} 8... Nge7 {[%clk 0:03:01]} 9. Bg5 {[%clk 0:02:43.2]} 9... f6 {[%clk
0:03:00.8]} 10. Be3 {[%clk 0:02:41]} 10... Nxd5 {[%clk 0:02:55.3]} 11. Qxd5
{[%clk 0:02:33.5]} 11... Bb7 {[%clk 0:02:48.8]} 12. Qd2 {[%clk 0:02:20.3]} 12...
Be7 {[%clk 0:02:25.8]} 13. Be2 {[%clk 0:02:18.6]} 13... O-O {[%clk 0:02:25.2]}
14. O-O {[%clk 0:02:16.8]} 14... Kh8 {[%clk 0:02:23.9]} 15. c3 {[%clk
0:02:05.7]} 15... Na5 {[%clk 0:02:17]} 16. Bd3 {[%clk 0:02:02.3]} 16... Rc8
{[%clk 0:02:10.4]} 17. f4 {[%clk 0:01:51.9]} 17... Qd7 {[%clk 0:01:57]} 18. fxe5
{[%clk 0:01:42.2]} 18... dxe5 {[%clk 0:01:52.4]} 19. Rad1 {[%clk 0:01:40.3]}
19... Qe6 {[%clk 0:01:47.9]} 20. b3 {[%clk 0:01:27.1]} 20... Bxa3 {[%clk
0:01:47]} 21. c4 {[%clk 0:01:19.4]} 21... b4 {[%clk 0:01:18.3]} 22. Rf3 {[%clk
0:01:09.3]} 22... Nc6 {[%clk 0:01:17.9]} 23. Rh3 {[%clk 0:01:06.3]} 23... Nd4
{[%clk 0:01:16.1]} 24. Qf2 {[%clk 0:01:05.2]} 24... Qg4 {[%clk 0:01:08.9]} 25.
Rf1 {[%clk 0:01:00.2]} 25... Bxe4 {[%clk 0:01:01.3]} 26. Bxd4 {[%clk 0:00:44.3]}
26... Bxd3 {[%clk 0:00:52.7]} 27. Rxd3 {[%clk 0:00:44.1]} 27... exd4 {[%clk
0:00:51.8]} 28. Rxd4 {[%clk 0:00:44.1]} 28... Qg6 {[%clk 0:00:47.5]} 29. Rd6
{[%clk 0:00:39.6]} 29... a5 {[%clk 0:00:42.1]} 30. Rfd1 {[%clk 0:00:39.4]} 30...
Rfe8 {[%clk 0:00:37.1]} 31. Rd7 {[%clk 0:00:36.2]} 31... h6 {[%clk 0:00:33.9]}
32. Ra7 {[%clk 0:00:34.8]} 32... Rcd8 {[%clk 0:00:28.7]} 33. Rxd8 {[%clk
0:00:29]} 33... Rxd8 {[%clk 0:00:29.6]} 34. h3 {[%clk 0:00:29]} 34... Bc1 {[%clk
0:00:26.9]} 35. Rxa5 {[%clk 0:00:20.2]} 35... Re8 {[%clk 0:00:16.8]} 36. Kh2
{[%clk 0:00:18.2]} 36... Qg5 {[%clk 0:00:16.3]} 37. Rxg5 {[%clk 0:00:10.7]}
37... hxg5 {[%clk 0:00:17.2]} 38. Qg3 {[%clk 0:00:10.5]} 38... Bf4 {[%clk
0:00:17.6]} 39. Qxf4 {[%clk 0:00:10.7]} 39... gxf4 {[%clk 0:00:18.5]} 40. Kg1
{[%clk 0:00:11.2]} 40... Re2 {[%clk 0:00:18.4]} 41. Kf1 {[%clk 0:00:10.9]} 41...
Rxa2 {[%clk 0:00:18.8]} 0-1

[Event "*** Titled Tuesday Blitz"]
[Site "Chess.com"]
[Date "2020.11.10"]
[Round "8"]
[White "Leo_C"]
[Black "AlexandraBotez"]
[Result "0-1"]
[WhiteElo "2268"]
[BlackElo "2119"]
[TimeControl "180+1"]
[EndTime "11:33:39 PST"]
[Termination "AlexandraBotez won on time"]

1. d4 {[%clk 0:03:00.9]} 1... Nf6 {[%clk 0:02:59.5]} 2. c4 {[%clk 0:02:55.7]}
2... g6 {[%clk 0:02:57.4]} 3. f3 {[%clk 0:02:54.2]} 3... c5 {[%clk 0:02:51.8]}
4. d5 {[%clk 0:02:53.7]} 4... d6 {[%clk 0:02:51.2]} 5. e4 {[%clk 0:02:53.1]}
5... Bg7 {[%clk 0:02:50.5]} 6. Ne2 {[%clk 0:02:53.1]} 6... b5 {[%clk 0:02:49.5]}
7. cxb5 {[%clk 0:02:52.3]} 7... a6 {[%clk 0:02:47.7]} 8. Nec3 {[%clk 0:02:52.3]}
8... O-O {[%clk 0:02:45.7]} 9. Nd2 {[%clk 0:02:49.3]} 9... Nbd7 {[%clk
0:02:01.9]} 10. a4 {[%clk 0:02:44.7]} 10... Ne5 {[%clk 0:02:01]} 11. f4 {[%clk
0:02:35]} 11... Neg4 {[%clk 0:01:55.3]} 12. h3 {[%clk 0:02:31]} 12... Ne3 {[%clk
0:01:55.1]} 13. Qb3 {[%clk 0:02:23.2]} 13... Nxf1 {[%clk 0:01:50.4]} 14. Rxf1
{[%clk 0:02:20.9]} 14... axb5 {[%clk 0:01:50.3]} 15. Nxb5 {[%clk 0:02:18.8]}
15... Ba6 {[%clk 0:01:41.7]} 16. Ra3 {[%clk 0:01:52.4]} 16... Qa5 {[%clk
0:01:19.9]} 17. Kd1 {[%clk 0:01:43.4]} 17... Rfb8 {[%clk 0:01:13.4]} 18. Nc4
{[%clk 0:01:43.1]} 18... Qb4 {[%clk 0:01:07.9]} 19. Qxb4 {[%clk 0:01:20.7]}
19... cxb4 {[%clk 0:01:08.1]} 20. Re3 {[%clk 0:01:20.7]} 20... Bxb5 {[%clk
0:01:08.3]} 21. axb5 {[%clk 0:01:21.6]} 21... Rxb5 {[%clk 0:01:07.8]} 22. b3
{[%clk 0:01:18.9]} 22... Ra1 {[%clk 0:01:03.8]} 23. Ke2 {[%clk 0:01:17.3]} 23...
Nd7 {[%clk 0:00:58.8]} 24. Bb2 {[%clk 0:01:10.6]} 24... Ra2 {[%clk 0:00:57.8]}
25. Rb1 {[%clk 0:01:06.9]} 25... Nc5 {[%clk 0:00:52.8]} 26. e5 {[%clk
0:01:02.8]} 26... dxe5 {[%clk 0:00:44.1]} 27. fxe5 {[%clk 0:01:01.9]} 27... Bh6
{[%clk 0:00:30.8]} 28. Rf3 {[%clk 0:00:53.4]} 28... Ne4 {[%clk 0:00:28.7]} 29.
Kf1 {[%clk 0:00:44.4]} 29... Rxd5 {[%clk 0:00:27.9]} 30. Kg1 {[%clk 0:00:13.6]}
30... e6 {[%clk 0:00:17.2]} 31. Ra1 {[%clk 0:00:07.1]} 31... Rxa1+ {[%clk
0:00:13]} 32. Bxa1 {[%clk 0:00:05.7]} 32... Rd1+ {[%clk 0:00:13.5]} 33. Rf1
{[%clk 0:00:03.5]} 33... Rd3 {[%clk 0:00:12.6]} 34. Rf3 {[%clk 0:00:02.1]} 34...
Rd1+ {[%clk 0:00:10.1]} 35. Rf1 {[%clk 0:00:01.8]} 35... Rd7 {[%clk 0:00:09.8]}
36. Kh2 {[%clk 0:00:01.2]} 36... Nc3 {[%clk 0:00:07.1]} 37. Bxc3 {[%clk
0:00:01]} 37... bxc3 {[%clk 0:00:07.4]} 0-1

[Event "*** Titled Tuesday Blitz"]
[Site "Chess.com"]
[Date "2020.11.10"]
[Round "8"]
[White "ftorodent"]
[Black "wonderfultime"]
[Result "1-0"]
[WhiteElo "2709"]
[BlackElo "2921"]
[TimeControl "180+1"]
[EndTime "11:33:40 PST"]
[Termination "ftorodent won by resignation"]

1. d4 {[%clk 0:03:00.9]} 1... d5 {[%clk 0:03:00]} 2. c4 {[%clk 0:03:01]} 2... c6
{[%clk 0:03:00.2]} 3. cxd5 {[%clk 0:03:00.4]} 3... cxd5 {[%clk 0:02:55.6]} 4.
Bf4 {[%clk 0:03:00.4]} 4... Nf6 {[%clk 0:02:46.5]} 5. e3 {[%clk 0:03:00.2]} 5...
a6 {[%clk 0:02:45.4]} 6. Nc3 {[%clk 0:03:00.1]} 6... Nc6 {[%clk 0:02:44]} 7. Bd3
{[%clk 0:02:58.9]} 7... Bg4 {[%clk 0:02:43.3]} 8. f3 {[%clk 0:02:59.2]} 8... Bh5
{[%clk 0:02:42.3]} 9. Nge2 {[%clk 0:02:59.7]} 9... e6 {[%clk 0:02:42.2]} 10. O-O
{[%clk 0:02:59.6]} 10... Bd6 {[%clk 0:02:42.9]} 11. Rc1 {[%clk 0:02:59.7]} 11...
O-O {[%clk 0:02:42.3]} 12. Na4 {[%clk 0:02:59.3]} 12... Bg6 {[%clk 0:02:41.3]}
13. a3 {[%clk 0:02:58.2]} 13... Rc8 {[%clk 0:02:40.6]} 14. b4 {[%clk 0:02:49.5]}
14... Qe7 {[%clk 0:02:28.6]} 15. Bxd6 {[%clk 0:02:45.5]} 15... Qxd6 {[%clk
0:02:17]} 16. Nc5 {[%clk 0:02:43.9]} 16... Rc7 {[%clk 0:02:08.8]} 17. Nf4 {[%clk
0:02:32.1]} 17... e5 {[%clk 0:02:00.8]} 18. dxe5 {[%clk 0:02:14.3]} 18... Nxe5
{[%clk 0:02:01.7]} 19. Be2 {[%clk 0:02:03.7]} 19... Re8 {[%clk 0:01:56.4]} 20.
Qd2 {[%clk 0:02:02.4]} 20... Rce7 {[%clk 0:01:26.7]} 21. Rfd1 {[%clk 0:01:57.1]}
21... Rd8 {[%clk 0:01:27.2]} 22. Rc3 {[%clk 0:01:44.9]} 22... h6 {[%clk
0:01:19.5]} 23. Nb3 {[%clk 0:01:22.5]} 23... Qb6 {[%clk 0:01:10.5]} 24. Qd4
{[%clk 0:01:19.5]} 24... Qd6 {[%clk 0:01:09.1]} 25. Qc5 {[%clk 0:01:17.4]} 25...
Qd7 {[%clk 0:00:57.4]} 26. Qb6 {[%clk 0:01:01.3]} 26... Qe8 {[%clk 0:00:47.5]}
27. Nd4 {[%clk 0:00:59.2]} 27... Bh7 {[%clk 0:00:44.2]} 28. Rdc1 {[%clk
0:00:55.4]} 28... Nc4 {[%clk 0:00:43.1]} 29. Bxc4 {[%clk 0:00:54.1]} 29... dxc4
{[%clk 0:00:44]} 30. Kf2 {[%clk 0:00:47.8]} 30... Bd3 {[%clk 0:00:31]} 31. Re1
{[%clk 0:00:25]} 31... Qd7 {[%clk 0:00:20.4]} 32. b5 {[%clk 0:00:22.8]} 32...
axb5 {[%clk 0:00:18.6]} 33. Qxb5 {[%clk 0:00:21.5]} 33... Qd6 {[%clk 0:00:19]}
34. Qb4 {[%clk 0:00:20.9]} 34... Qd7 {[%clk 0:00:13.9]} 35. Qb5 {[%clk 0:00:20]}
35... Qd6 {[%clk 0:00:12.1]} 36. Nxd3 {[%clk 0:00:19.8]} 36... cxd3 {[%clk
0:00:12.1]} 37. Nf5 {[%clk 0:00:20]} 37... Ng4+ {[%clk 0:00:04.4]} 38. fxg4
{[%clk 0:00:16.5]} 38... Qf6 {[%clk 0:00:04.9]} 39. Rxd3 {[%clk 0:00:14.9]}
39... Rxd3 {[%clk 0:00:05]} 40. Qxd3 {[%clk 0:00:15.1]} 40... g6 {[%clk
0:00:05.9]} 41. Qd8+ {[%clk 0:00:15.3]} 41... Kh7 {[%clk 0:00:06.2]} 42. Qxe7
{[%clk 0:00:15.9]} 1-0

[Event "*** Titled Tuesday Blitz"]
[Site "Chess.com"]
[Date "2020.11.10"]
[Round "8"]
[White "Evgeny81"]
[Black "albi1999"]
[Result "0-1"]
[WhiteElo "2707"]
[BlackElo "2570"]
[TimeControl "180+1"]
[EndTime "11:33:40 PST"]
[Termination "albi1999 won by checkmate"]

1. e4 {[%clk 0:02:53.1]} 1... e5 {[%clk 0:02:55.7]} 2. Nf3 {[%clk 0:02:52.5]}
2... Nc6 {[%clk 0:02:56.3]} 3. Bc4 {[%clk 0:02:52.5]} 3... Bc5 {[%clk
0:02:55.5]} 4. b4 {[%clk 0:02:52.6]} 4... Bxb4 {[%clk 0:02:55.3]} 5. c3 {[%clk
0:02:52.7]} 5... Be7 {[%clk 0:02:54.7]} 6. d4 {[%clk 0:02:51.7]} 6... Na5 {[%clk
0:02:55]} 7. Nxe5 {[%clk 0:02:47.1]} 7... Nxc4 {[%clk 0:02:54.3]} 8. Nxc4 {[%clk
0:02:48]} 8... d5 {[%clk 0:02:54.4]} 9. exd5 {[%clk 0:02:48.4]} 9... Qxd5 {[%clk
0:02:53]} 10. Ne3 {[%clk 0:02:49.1]} 10... Qd8 {[%clk 0:02:48.5]} 11. O-O {[%clk
0:02:48.6]} 11... Nf6 {[%clk 0:02:49]} 12. c4 {[%clk 0:02:46.8]} 12... O-O
{[%clk 0:02:48.1]} 13. Nc3 {[%clk 0:02:47.1]} 13... c6 {[%clk 0:02:48.2]} 14.
Bb2 {[%clk 0:02:46.3]} 14... Re8 {[%clk 0:02:47.3]} 15. Qd3 {[%clk 0:02:43.8]}
15... Ng4 {[%clk 0:02:39]} 16. Rfe1 {[%clk 0:02:29.6]} 16... Bd6 {[%clk
0:02:28.4]} 17. Nxg4 {[%clk 0:02:22]} 17... Bxg4 {[%clk 0:02:25.8]} 18. h3
{[%clk 0:02:20.1]} 18... Bh5 {[%clk 0:02:25.4]} 19. Ne4 {[%clk 0:02:11.7]} 19...
Bg6 {[%clk 0:02:23.2]} 20. Qf3 {[%clk 0:02:11.7]} 20... Bf8 {[%clk 0:02:19.2]}
21. Rad1 {[%clk 0:02:00.2]} 21... Qa5 {[%clk 0:02:03.1]} 22. a3 {[%clk 0:01:56]}
22... Qa4 {[%clk 0:01:58.4]} 23. Rc1 {[%clk 0:01:38.2]} 23... Rad8 {[%clk
0:01:43.2]} 24. Re3 {[%clk 0:01:25.6]} 24... h6 {[%clk 0:01:08]} 25. g4 {[%clk
0:01:11.2]} 25... Bxe4 {[%clk 0:01:04.6]} 26. Rxe4 {[%clk 0:01:11.3]} 26... Rxe4
{[%clk 0:01:05.5]} 27. Qxe4 {[%clk 0:01:12]} 27... Qb3 {[%clk 0:01:05.4]} 28.
Rb1 {[%clk 0:00:55.9]} 28... Qxh3 {[%clk 0:00:45]} 29. Bc1 {[%clk 0:00:52.9]}
29... Bd6 {[%clk 0:00:40.3]} 30. Qg2 {[%clk 0:00:48.6]} 30... Qd3 {[%clk
0:00:33.6]} 31. Rxb7 {[%clk 0:00:48.4]} 31... Qd1+ {[%clk 0:00:33.2]} 32. Qf1
{[%clk 0:00:48.6]} 32... Qxg4+ {[%clk 0:00:33.7]} 33. Qg2 {[%clk 0:00:49.1]}
33... Qd1+ {[%clk 0:00:33]} 34. Qf1 {[%clk 0:00:49.6]} 34... Qxd4 {[%clk
0:00:29.8]} 35. Be3 {[%clk 0:00:49.5]} 35... Qe4 {[%clk 0:00:20.8]} 36. Rxa7
{[%clk 0:00:42]} 36... Be5 {[%clk 0:00:18.1]} 37. Ra5 {[%clk 0:00:23.8]} 37...
Qg4+ {[%clk 0:00:17.3]} 38. Kh1 {[%clk 0:00:23.7]} 38... Qh5+ {[%clk 0:00:15.7]}
39. Kg2 {[%clk 0:00:22.7]} 39... Qg4+ {[%clk 0:00:10.4]} 40. Kh1 {[%clk
0:00:22.1]} 40... f6 {[%clk 0:00:10.5]} 41. f3 {[%clk 0:00:12.4]} 41... Qh4+
{[%clk 0:00:09.5]} 42. Kg2 {[%clk 0:00:12.1]} 42... Qh2# {[%clk 0:00:09.4]} 0-1

[Event "*** Titled Tuesday Blitz"]
[Site "Chess.com"]
[Date "2020.11.10"]
[Round "8"]
[White "VinzentSpitzl"]
[Black "MPGM"]
[Result "1-0"]
[WhiteElo "2341"]
[BlackElo "2464"]
[TimeControl "180+1"]
[EndTime "11:33:40 PST"]
[Termination "VinzentSpitzl won by resignation"]

1. e4 {[%clk 0:03:00.9]} 1... c6 {[%clk 0:02:59.5]} 2. Nf3 {[%clk 0:02:59.4]}
2... d5 {[%clk 0:03:00.4]} 3. Nc3 {[%clk 0:02:59.8]} 3... dxe4 {[%clk
0:03:00.5]} 4. Nxe4 {[%clk 0:03:00.7]} 4... Nf6 {[%clk 0:03:00.7]} 5. Qe2 {[%clk
0:03:01.3]} 5... Bg4 {[%clk 0:03:00.6]} 6. Nxf6+ {[%clk 0:02:56.1]} 6... gxf6
{[%clk 0:03:01.5]} 7. h3 {[%clk 0:02:56]} 7... Bh5 {[%clk 0:02:59.3]} 8. d3
{[%clk 0:02:47.5]} 8... Nd7 {[%clk 0:02:59.1]} 9. g4 {[%clk 0:02:40.8]} 9... Bg6
{[%clk 0:02:58.8]} 10. Bg2 {[%clk 0:02:41.4]} 10... Nb6 {[%clk 0:02:43.4]} 11.
Be3 {[%clk 0:02:30.7]} 11... e6 {[%clk 0:02:40.8]} 12. Nh4 {[%clk 0:02:26.2]}
12... f5 {[%clk 0:02:21.4]} 13. Nxg6 {[%clk 0:02:21.3]} 13... hxg6 {[%clk
0:02:21]} 14. a4 {[%clk 0:02:16.8]} 14... Nd5 {[%clk 0:02:14.1]} 15. c3 {[%clk
0:01:49]} 15... Bd6 {[%clk 0:02:05.4]} 16. Bxd5 {[%clk 0:01:29.1]} 16... cxd5
{[%clk 0:02:04]} 17. gxf5 {[%clk 0:01:29.3]} 17... gxf5 {[%clk 0:02:03.4]} 18.
Bd4 {[%clk 0:01:14.2]} 18... Rg8 {[%clk 0:02:02.6]} 19. Be5 {[%clk 0:01:14.5]}
19... Bxe5 {[%clk 0:01:51]} 20. Qxe5 {[%clk 0:01:15.4]} 20... Qb6 {[%clk
0:01:50.8]} 21. O-O-O {[%clk 0:00:44.8]} 21... O-O-O {[%clk 0:01:48.9]} 22. Qe3
{[%clk 0:00:20.9]} 22... Qa6 {[%clk 0:01:39.9]} 23. Qc5+ {[%clk 0:00:18.7]}
23... Kb8 {[%clk 0:01:40.3]} 24. Qd4 {[%clk 0:00:17.1]} 24... Ka8 {[%clk
0:01:35.1]} 25. h4 {[%clk 0:00:17]} 25... Rg4 {[%clk 0:01:31.3]} 26. Qf6 {[%clk
0:00:17]} 26... Rc8 {[%clk 0:01:29.5]} 27. h5 {[%clk 0:00:15.1]} 27... Rxa4
{[%clk 0:01:18]} 28. h6 {[%clk 0:00:15.1]} 28... Ra1+ {[%clk 0:01:15.6]} 29. Kd2
{[%clk 0:00:15.5]} 29... Ra2 {[%clk 0:01:13.5]} 30. Rb1 {[%clk 0:00:14.7]} 30...
Qb6 {[%clk 0:01:12.9]} 31. Ke2 {[%clk 0:00:11]} 31... Rxb2+ {[%clk 0:01:07.3]}
32. Rxb2 {[%clk 0:00:11.3]} 32... Qxb2+ {[%clk 0:01:08.2]} 33. Kf3 {[%clk
0:00:12]} 33... Qd2 {[%clk 0:01:01.9]} 34. h7 {[%clk 0:00:10.5]} 34... Qxd3+
{[%clk 0:01:00.8]} 35. Kg2 {[%clk 0:00:09.1]} 35... Qe4+ {[%clk 0:01:00.4]} 36.
f3 {[%clk 0:00:07.3]} 36... Qc2+ {[%clk 0:00:39.1]} 37. Kg3 {[%clk 0:00:07.6]}
37... f4+ {[%clk 0:00:39.6]} 38. Qxf4 {[%clk 0:00:07.9]} 38... Qg6+ {[%clk
0:00:36.5]} 39. Qg4 {[%clk 0:00:08.3]} 39... Qf6 {[%clk 0:00:35.8]} 40. Qg8
{[%clk 0:00:07.7]} 40... Qh8 {[%clk 0:00:33.8]} 41. Qxc8+ {[%clk 0:00:06.7]}
41... Qxc8 {[%clk 0:00:31.5]} 42. h8=Q {[%clk 0:00:07.2]} 42... Qb8+ {[%clk
0:00:32]} 43. Kf2 {[%clk 0:00:05.5]} 43... a5 {[%clk 0:00:31]} 44. Ke3 {[%clk
0:00:05]} 44... Qxh8 {[%clk 0:00:27.8]} 45. Rxh8+ {[%clk 0:00:04.6]} 45... Ka7
{[%clk 0:00:28.7]} 46. Kd4 {[%clk 0:00:04.8]} 46... a4 {[%clk 0:00:28.7]} 47.
Kc5 {[%clk 0:00:05.3]} 47... a3 {[%clk 0:00:28.6]} 48. Kb4 {[%clk 0:00:05.9]}
48... a2 {[%clk 0:00:28.8]} 49. Rh1 {[%clk 0:00:06.5]} 1-0